fUST/lending_fUST_20240201
["ID","MTS","AMOUNT","RATE_DAILY","PERIOD"]
[313071873,1706718639669,-500.0,0.00019452,2]
[313071874,1706718639679,-1267.67,0.00019452,2]
[313071875,1706718639689,-1968.27,0.00019452,2]
[313071876,1706718639702,-1427.26,0.00019452,2]
[313071877,1706718639712,-500.0,0.00019452,2]
[313071878,1706718639721,-2089.44,0.00019452,2]
[313071879,1706718639730,-1293.64,0.00019452,2]
[313071880,1706718639741,-500.0,0.00019452,2]
[313071881,1706718639750,-606.73,0.00019452,2]
[313071882,1706718639759,-500.0,0.00019452,2]
[313071883,1706718639769,-500.0,0.00019452,2]
[313071884,1706718639780,-604.0,0.00019452,2]
[313071885,1706718639789,-500.0,0.00019452,2]
[313071886,1706718639799,-500.0,0.00019452,2]
[313071887,1706718639808,-1927.15,0.00019452,2]
[313071888,1706718639817,-13490.24,0.00019452,2]
[313071889,1706718639827,-500.0,0.00019452,2]
[313071890,1706718639837,-3691.58,0.00019452,2]
[313071891,1706718639847,-1042.02,0.00019452,2]
[313071892,1706718639856,-500.0,0.00019452,2]
[313071893,1706718639866,-500.0,0.00019452,2]
[313071894,1706718639876,-522.59,0.00019452,2]
[313071895,1706718639885,-500.0,0.00019452,2]
[313071896,1706718639896,-250.07075875,0.00019452,2]
[313071897,1706718639906,-522.02,0.00019452,2]
[313071898,1706718639915,-1107.53,0.00019452,2]
[313071899,1706718639927,-6601.71,0.00019452,2]
[313071900,1706718639936,-647.94,0.00019452,2]
[313071901,1706718639946,-6260.44,0.00019452,2]
[313071902,1706718639955,-1126.3,0.00019452,2]
[313071903,1706718639965,-981.78,0.00019452,2]
[313071904,1706718639974,-628.95,0.00019452,2]
[313071905,1706718639984,-171.81118109,0.00019452,2]
[313071906,1706718639993,-3030.0,0.00019452,2]
[313071907,1706718640003,-2616.0,0.00019452,2]
[313071908,1706718640012,-500.0,0.00019452,2]
[313071909,1706718640021,-9855.03,0.00019452,2]
[313071910,1706718640031,-2230.8,0.00019452,2]
[313071911,1706718640040,-500.0,0.00019452,2]
[313071912,1706718640050,-1328.09,0.00019452,2]
[313071913,1706718640060,-3182.92,0.00019452,2]
[313071914,1706718640071,-500.0,0.00019452,2]
[313071915,1706718640080,-500.0,0.00019452,2]
[313071916,1706718640089,-1443.4,0.00019452,2]
[313071917,1706718640099,-500.0,0.00019452,2]
[313071918,1706718640108,-937.16,0.00019452,2]
[313071919,1706718640118,-500.0,0.00019452,2]
[313071920,1706718640127,-500.0,0.00019452,2]
[313071921,1706718640137,-500.0,0.00019726,2]
[313071922,1706718640146,-1810.12,0.00019726,2]
[313071923,1706718640156,-500.0,0.00019726,2]
[313071924,1706718640166,-534.97764921,0.00019726,2]
[313071925,1706718640177,-500.0,0.00019726,2]
[313071926,1706718640288,-500.0,0.00019726,2]
[313071927,1706718640298,-500.0,0.00019726,2]
[313071928,1706718640309,-427.04037808,0.00019726,2]
[313071929,1706718640319,-1080.02,0.00019726,2]
[313071930,1706718640330,-500.0,0.00019726,2]
[313071931,1706718640340,-500.0,0.00019726,2]
[313071932,1706718640351,-500.0,0.00019726,2]
[313071933,1706718640361,-634.13,0.00019726,2]
[313071934,1706718640372,-500.0,0.00019726,2]
[313071935,1706718640382,-500.0,0.00019726,2]
[313071936,1706718640392,-2959.96,0.00019726,2]
[313071937,1706718640404,-1063.72,0.00019726,2]
[313071938,1706718640416,-500.0,0.00019726,2]
[313071939,1706718640432,-787.31,0.00019726,2]
[313071940,1706718640442,-500.0,0.00019726,2]
[313071941,1706718640454,-500.0,0.00019726,2]
[313071942,1706718640464,-1159.54,0.00019726,2]
[313071943,1706718640474,-500.0,0.00019726,2]
[313071944,1706718640485,-423.32,0.00019726,2]
[313071945,1706718640495,-558.02,0.00019726,2]
[313071946,1706718640506,-500.0,0.00019726,2]
[313071947,1706718640516,-920.42,0.00019726,2]
[313071948,1706718640525,-500.0,0.00019726,2]
[313071949,1706718640535,-645.71,0.00019726,2]
[313071950,1706718640545,-500.0,0.00019726,2]
[313071951,1706718640556,-1267.67,0.00019726,2]
[313071952,1706718640565,-1968.27,0.00019726,2]
[313071954,1706718640575,-1427.26,0.00019726,2]
[313071956,1706718640585,-500.0,0.00019726,2]
[313071958,1706718640594,-2089.44,0.00019726,2]
[313071960,1706718640605,-1293.64,0.00019726,2]
[313071961,1706718640615,-500.0,0.00019726,2]
[313071962,1706718640625,-606.73,0.00019726,2]
[313071963,1706718640635,-500.0,0.00019726,2]
[313071964,1706718640645,-500.0,0.00019726,2]
[313071965,1706718640656,-604.0,0.00019726,2]
[313071966,1706718640666,-500.0,0.00019726,2]
[313071967,1706718640678,-500.0,0.00019726,2]
[313071968,1706718640688,-1927.15,0.00019726,2]
[313071969,1706718640702,-13490.24,0.00019726,2]
[313071970,1706718640712,-500.0,0.00019726,2]
[313071971,1706718640721,-3691.58,0.00019726,2]
[313071972,1706718640731,-1042.02,0.00019726,2]
[313071973,1706718640740,-500.0,0.00019726,2]
[313071974,1706718640750,-500.0,0.00019726,2]
[313071976,1706718640759,-522.59,0.00019726,2]
[313071978,1706718640768,-500.0,0.00019726,2]
[313071980,1706718640777,-522.02,0.00019726,2]
[313071982,1706718640787,-1107.53,0.00019726,2]
[313071984,1706718640796,-6601.71,0.00019726,2]
[313071986,1706718640805,-647.94,0.00019726,2]
[313071987,1706718640814,-6260.44,0.00019726,2]
[313071989,1706718640824,-1126.3,0.00019726,2]
[313071990,1706718640833,-981.78,0.00019726,2]
[313071991,1706718640843,-628.95,0.00019726,2]
[313071993,1706718640852,-500.0,0.00019726,2]
[313071995,1706718640861,-3030.0,0.00019726,2]
[313071996,1706718640870,-2616.0,0.00019726,2]
[313071998,1706718640880,-9855.03,0.00019726,2]
[313071999,1706718640889,-2230.8,0.00019726,2]
[313072000,1706718640898,-500.0,0.00019726,2]
[313072001,1706718640908,-1328.09,0.00019726,2]
[313072002,1706718640917,-3182.92,0.00019726,2]
[313072003,1706718640928,-500.0,0.00019726,2]
[313072004,1706718640937,-500.0,0.00019726,2]
[313072005,1706718640946,-1443.4,0.00019726,2]
[313072006,1706718640955,-500.0,0.00019726,2]
[313072007,1706718640963,-937.16,0.00019726,2]
[313072008,1706718640972,-500.0,0.00019726,2]
[313072009,1706718640981,-500.0,0.00019726,2]
[313072010,1706718640990,-276000.0,0.000199,2]
[313072011,1706718641000,-155.01240124,0.0002,2]
[313072012,1706718641009,-323.57048434,0.0002,2]
[313072013,1706718641018,-178.21239998,0.0002,2]
[313072014,1706718641027,-1200.08348294,0.0002,2]
[313072015,1706718641036,-500.0,0.0002,2]
[313072016,1706718641046,-1810.12,0.0002,2]
[313072017,1706718641055,-500.0,0.0002,2]
[313072018,1706718641064,-500.0,0.0002,2]
[313072019,1706718641073,-500.0,0.0002,2]
[313072020,1706718641082,-500.0,0.0002,2]
[313072021,1706718641091,-1080.02,0.0002,2]
[313072022,1706718641100,-500.0,0.0002,2]
[313072023,1706718641110,-500.0,0.0002,2]
[313072024,1706718641119,-500.0,0.0002,2]
[313072025,1706718641128,-634.13,0.0002,2]
[313072026,1706718641137,-500.0,0.0002,2]
[313072027,1706718641146,-500.0,0.0002,2]
[313072028,1706718641161,-2959.96,0.0002,2]
[313072029,1706718641175,-1063.72,0.0002,2]
[313072030,1706718641188,-186.8035473,0.0002,2]
[313072031,1706718641202,-787.31,0.0002,2]
[313072032,1706718641212,-500.0,0.0002,2]
[313072033,1706718641224,-1159.54,0.0002,2]
[313072034,1706718641237,-500.0,0.0002,2]
[313072035,1706718641249,-558.02,0.0002,2]
[313072036,1706718641263,-258.58735297,0.0002,2]
[313072037,1706718641278,-920.42,0.0002,2]
[313072038,1706718641291,-500.0,0.0002,2]
[313072039,1706718641306,-645.71,0.0002,2]
[313072040,1706718641318,-331.03874954,0.0002,2]
[313072041,1706718641329,-1267.67,0.0002,2]
[313072042,1706718641342,-1968.27,0.0002,2]
[313072043,1706718641354,-1427.26,0.0002,2]
[313072044,1706718641367,-500.0,0.0002,2]
[313072045,1706718641378,-2089.44,0.0002,2]
[313072046,1706718641391,-1293.64,0.0002,2]
[313072047,1706718641404,-500.0,0.0002,2]
[313072048,1706718641418,-606.73,0.0002,2]
[313072049,1706718641429,-500.0,0.0002,2]
[313072050,1706718641441,-500.0,0.0002,2]
[313072051,1706718641455,-604.0,0.0002,2]
[313072052,1706718641468,-500.0,0.0002,2]
[313072055,1706718641481,-500.0,0.0002,2]
[313072057,1706718641492,-1927.15,0.0002,2]
[313072059,1706718641504,-13490.24,0.0002,2]
[313072061,1706718641516,-500.0,0.0002,2]
[313072064,1706718641527,-3691.58,0.0002,2]
[313072066,1706718641539,-1042.02,0.0002,2]
[313072068,1706718641551,-500.0,0.0002,2]
[313072069,1706718641565,-500.0,0.0002,2]
[313072070,1706718641578,-522.59,0.0002,2]
[313072071,1706718641590,-381.07651183,0.0002,2]
[313072073,1706718641602,-522.02,0.0002,2]
[313072074,1706718641614,-1107.53,0.0002,2]
[313072076,1706718641624,-6601.71,0.0002,2]
[313072078,1706718641634,-647.94,0.0002,2]
[313072080,1706718641644,-6260.44,0.0002,2]
[313072081,1706718641655,-1126.3,0.0002,2]
[313072084,1706718641666,-981.78,0.0002,2]
[313072086,1706718641678,-628.95,0.0002,2]
[313072087,1706718641690,-500.0,0.0002,2]
[313072089,1706718641703,-3030.0,0.0002,2]
[313072091,1706718641715,-2616.0,0.0002,2]
[313072093,1706718641726,-9855.03,0.0002,2]
[313072094,1706718641736,-2230.8,0.0002,2]
[313072095,1706718641747,-500.0,0.0002,2]
[313072096,1706718641758,-1328.09,0.0002,2]
[313072097,1706718641769,-3182.92,0.0002,2]
[313072098,1706718641781,-500.0,0.0002,2]
[313072099,1706718641792,-500.0,0.0002,2]
[313072100,1706718641803,-1443.4,0.0002,2]
[313072101,1706718641814,-500.0,0.0002,2]
[313072102,1706718641825,-937.16,0.0002,2]
[313072103,1706718641836,-500.0,0.0002,2]
[313072104,1706718641848,-500.0,0.0002,2]
[313072105,1706718641860,-500.0,0.00020273,2]
[313072106,1706718641872,-1810.12,0.00020273,2]
[313072107,1706718641883,-500.0,0.00020273,2]
[313072108,1706718641896,-500.0,0.00020273,2]
[313072109,1706718641907,-500.0,0.00020273,2]
[313072110,1706718641918,-500.0,0.00020273,2]
[313072111,1706718641931,-1080.02,0.00020273,2]
[313072112,1706718641941,-500.0,0.00020273,2]
[313072113,1706718641952,-500.0,0.00020273,2]
[313072114,1706718641963,-500.0,0.00020273,2]
[313072115,1706718641974,-634.13,0.00020273,2]
[313072116,1706718641985,-500.0,0.00020273,2]
[313072117,1706718641996,-500.0,0.00020273,2]
[313072118,1706718642007,-2959.96,0.00020273,2]
[313072119,1706718642018,-1063.72,0.00020273,2]
[313072120,1706718642029,-787.31,0.00020273,2]
[313072121,1706718642040,-500.0,0.00020273,2]
[313072122,1706718642052,-1159.54,0.00020273,2]
[313072123,1706718642063,-500.0,0.00020273,2]
[313072124,1706718642073,-558.02,0.00020273,2]
[313072125,1706718642084,-920.42,0.00020273,2]
[313072126,1706718642095,-500.0,0.00020273,2]
[313072127,1706718642105,-645.71,0.00020273,2]
[313072128,1706718642116,-1267.67,0.00020273,2]
[313072129,1706718642128,-1968.27,0.00020273,2]
[313072130,1706718642139,-1427.26,0.00020273,2]
[313072131,1706718642150,-500.0,0.00020273,2]
[313072132,1706718642161,-2089.44,0.00020273,2]
[313072133,1706718642174,-1293.64,0.00020273,2]
[313072134,1706718642185,-500.0,0.00020273,2]
[313072135,1706718642196,-606.73,0.00020273,2]
[313072136,1706718642207,-500.0,0.00020273,2]
[313072137,1706718642219,-500.0,0.00020273,2]
[313072138,1706718642230,-224.66472697,0.00020273,2]
[313072193,1706718643378,-808.93306313,0.00019442,3]
[313072201,1706718643441,-465.7143465,0.00019442,3]
[313072203,1706718643452,-575.0,0.00019442,3]
[313072267,1706718646836,-389.81045533,0.00018559,2]
[313072268,1706718646848,-717.2681638,0.00018559,2]
[313072301,1706718812247,2714.9318783,0.00018556,5]
[313072304,1706718827574,2218.9306532,0.00018157,2]
[313072306,1706718872021,15278.40156005,0.00018157,2]
[313072311,1706718924948,280.0,0.00021968,7]
[313072317,1706719121962,155.0,0.00016331,3]
[313072319,1706719141952,155.0,0.0001634,3]
[313072321,1706719163937,155.0,0.00016329,3]
[313072325,1706719189973,155.0,0.00016329,3]
[313072331,1706719215982,216.70825,0.00017123,2]
[313072332,1706719217959,155.0,0.00016327,3]
[313072333,1706719225080,280.0,0.00021952,7]
[313072334,1706719235956,155.0,0.00016327,3]
[313072338,1706719255942,155.0,0.0001634,3]
[313072339,1706719273983,155.0,0.00016325,3]
[313072340,1706719289943,155.0,0.00016325,3]
[313072341,1706719305950,155.0,0.00016325,3]
[313072342,1706719307831,24900.0,0.0001712,2]
[313072348,1706719327956,155.0,0.00016323,3]
[313072349,1706719331217,175.45847318,0.00016322,2]
[313072350,1706719345955,155.0,0.00016323,3]
[313072352,1706719367958,155.0,0.00016323,3]
[313072353,1706719385967,155.0,0.00016338,3]
[313072354,1706719397370,1000.0,0.00021917,5]
[313072360,1706719405968,155.0,0.00016338,3]
[313072365,1706719419964,155.0,0.00016338,3]
[313072367,1706719437976,155.0,0.0001634,3]
[313072374,1706719457995,155.0,0.00016322,3]
[313072381,1706719475972,155.0,0.00016322,3]
[313072388,1706719499981,155.0,0.00016339,3]
[313072392,1706719525081,280.0,0.00021942,7]
[313072393,1706719525983,155.0,0.00016339,3]
[313072398,1706719541975,155.0,0.00016339,3]
[313072400,1706719564018,155.0,0.00016319,3]
[313072402,1706719583993,155.0,0.00016319,3]
[313072404,1706719600011,155.0,0.00016319,3]
[313072408,1706719618005,155.0,0.00016316,3]
[313072410,1706719636005,155.0,0.00016316,3]
[313072414,1706719651868,171.0131344,0.00017488,2]
[313072415,1706719656008,155.0,0.00016316,3]
[313072417,1706719680014,155.0,0.00016229,3]
[313072420,1706719688975,190.71052724,0.00017935,2]
[313072422,1706719698013,155.0,0.00016229,3]
[313072426,1706719709360,220.134736,0.00017112,2]
[313072427,1706719716015,155.0,0.00016229,3]
[313072429,1706719734031,155.0,0.0001634,3]
[313072431,1706719756027,155.0,0.00016226,3]
[313072434,1706719774017,155.0,0.00016225,3]
[313072435,1706719790024,155.0,0.00016225,3]
[313072436,1706719791687,276.26616081,0.00017932,2]
[313072437,1706719806028,155.0,0.00016224,3]
[313072438,1706719824024,155.0,0.00016224,3]
[313072439,1706719825116,280.0,0.00021811,7]
[313072475,1706719832584,-2042.05188148,0.00018027,2]
[313072477,1706719832593,-20928.42010266,0.00018027,2]
[313072479,1706719832603,-1242.90655944,0.00018027,2]
[313072481,1706719832613,-453.55708389,0.00018028,2]
[313072483,1706719832622,-19892.62116688,0.00018028,2]
[313072485,1706719832632,-159.01858397,0.00018029,2]
[313072487,1706719832641,-83824.13419779,0.00018029,2]
[313072489,1706719832651,-1298.48012057,0.00018032,2]
[313072491,1706719832660,-2004.1473138,0.00018037,2]
[313072492,1706719832669,-190.71052723,0.00018092,2]
[313072494,1706719832678,-1580.99696612,0.0001813,2]
[313072496,1706719832688,-2986.9872931,0.00018132,2]
[313072500,1706719832701,-2092.1,0.00018132,2]
[313072503,1706719832715,-13848.26571665,0.00018132,2]
[313072506,1706719832725,-175.40467432,0.00018138,2]
[313072508,1706719832734,-171.95867383,0.00018155,2]
[313072510,1706719832744,-273.02300698,0.00018156,2]
[313072512,1706719832753,-235281.51669359,0.00018157,2]
[313072676,1706719838578,-16617.58723968,0.00018157,2]
[313072678,1706719838588,-276.2661608,0.00018219,2]
[313072680,1706719838597,-190.71052723,0.0001825,2]
[313072681,1706719838606,-190.71052723,0.00018407,2]
[313072684,1706719838617,-276.2661608,0.00018505,2]
[313072685,1706719838626,-167.15177222,0.00018556,2]
[313072687,1706719838636,-155.33653016,0.00018556,2]
[313072689,1706719838645,-228.15004673,0.00018556,2]
[313072691,1706719838655,-535.7952849,0.00018559,2]
[313072693,1706719838663,-190.71052723,0.00018565,2]
[313072695,1706719838672,-190.71052723,0.00018722,2]
[313072697,1706719838682,-276.2661608,0.00018792,2]
[313072699,1706719838690,-190.71052723,0.0001888,2]
[313072701,1706719838700,-190.71052723,0.00019037,2]
[313072703,1706719838709,-276.2661608,0.00019078,2]
[313072705,1706719838718,-500.0,0.00019178,2]
[313072707,1706719838727,-500.0,0.00019178,2]
[313072709,1706719838736,-500.0,0.00019178,2]
[313072711,1706719838745,-571.96371356,0.00019178,2]
[313072713,1706719838754,-500.0,0.00019178,2]
[313072715,1706719838763,-754.5,0.00019178,2]
[313072717,1706719838772,-500.0,0.00019178,2]
[313072719,1706719838781,-500.0,0.00019178,2]
[313072721,1706719838790,-500.0,0.00019178,2]
[313072722,1706719838799,-500.0,0.00019178,2]
[313072724,1706719838809,-500.0,0.00019178,2]
[313072726,1706719838818,-500.0,0.00019178,2]
[313072728,1706719838827,-606.73,0.00019178,2]
[313072730,1706719838836,-604.0,0.00019178,2]
[313072732,1706719838845,-500.0,0.00019178,2]
[313072734,1706719838855,-542.32133494,0.00019178,2]
[313072736,1706719838864,-500.0,0.00019178,2]
[313072738,1706719838873,-500.0,0.00019178,2]
[313072740,1706719838882,-522.59,0.00019178,2]
[313072742,1706719838891,-1042.02,0.00019178,2]
[313072744,1706719838900,-2836.63,0.00019178,2]
[313072746,1706719838909,-500.0,0.00019178,2]
[313072747,1706719838918,-1019.4,0.00019178,2]
[313072749,1706719838927,-500.0,0.00019178,2]
[313072751,1706719838936,-500.0,0.00019178,2]
[313072753,1706719838946,-500.0,0.00019178,2]
[313072755,1706719838956,-500.0,0.00019178,2]
[313072756,1706719838965,-500.0,0.00019178,2]
[313072758,1706719838976,-500.0,0.00019178,2]
[313072760,1706719838985,-500.0,0.00019178,2]
[313072762,1706719838995,-500.0,0.00019178,2]
[313072763,1706719839005,-500.0,0.00019178,2]
[313072765,1706719839014,-1124.8,0.00019178,2]
[313072766,1706719839023,-500.0,0.00019178,2]
[313072767,1706719839033,-6601.71,0.00019178,2]
[313072768,1706719839042,-500.0,0.00019178,2]
[313072769,1706719839052,-628.95,0.00019178,2]
[313072770,1706719839061,-500.0,0.00019178,2]
[313072771,1706719839074,-500.0,0.00019178,2]
[313072772,1706719839083,-9960.78,0.00019178,2]
[313072773,1706719839093,-558.02,0.00019178,2]
[313072774,1706719839103,-500.0,0.00019178,2]
[313072775,1706719839113,-500.0,0.00019178,2]
[313072776,1706719839122,-920.42,0.00019178,2]
[313072777,1706719839131,-500.0,0.00019178,2]
[313072778,1706719839142,-1807.89,0.00019178,2]
[313072779,1706719839152,-645.71,0.00019178,2]
[313072780,1706719839162,-500.0,0.00019178,2]
[313072781,1706719839171,-1267.67,0.00019178,2]
[313072782,1706719839180,-500.0,0.00019178,2]
[313072783,1706719839190,-500.0,0.00019178,2]
[313072784,1706719839199,-500.0,0.00019178,2]
[313072785,1706719839208,-424.25997704,0.00019178,2]
[313072786,1706719839218,-500.0,0.00019178,2]
[313072787,1706719839227,-500.0,0.00019178,2]
[313072788,1706719839236,-2089.44,0.00019178,2]
[313072789,1706719839245,-500.0,0.00019178,2]
[313072790,1706719839255,-1427.26,0.00019178,2]
[313072791,1706719839264,-1968.27,0.00019178,2]
[313072792,1706719839273,-500.0,0.00019178,2]
[313072793,1706719839282,-500.0,0.00019178,2]
[313072794,1706719839291,-500.0,0.00019178,2]
[313072795,1706719839300,-500.0,0.00019178,2]
[313072796,1706719839309,-522.02,0.00019178,2]
[313072797,1706719839318,-500.0,0.00019178,2]
[313072798,1706719839328,-3691.58,0.00019178,2]
[313072799,1706719839337,-13774.12,0.00019178,2]
[313072800,1706719839346,-500.0,0.00019178,2]
[313072801,1706719839355,-342.75143032,0.00019178,2]
[313072802,1706719839364,-500.0,0.00019178,2]
[313072803,1706719839373,-500.0,0.00019178,2]
[313072804,1706719839383,-6805.11,0.00019178,2]
[313072805,1706719839392,-500.0,0.00019178,2]
[313072806,1706719839402,-1293.64,0.00019178,2]
[313072807,1706719839411,-647.94,0.00019178,2]
[313072808,1706719839420,-3182.92,0.00019178,2]
[313072809,1706719839429,-981.78,0.00019178,2]
[313072810,1706719839438,-500.0,0.00019178,2]
[313072811,1706719839447,-1107.53,0.00019178,2]
[313072812,1706719839457,-1126.3,0.00019178,2]
[313072813,1706719839466,-1035.02,0.00019178,2]
[313072814,1706719839476,-2616.0,0.00019178,2]
[313072815,1706719839485,-500.0,0.00019178,2]
[313072816,1706719839494,-2230.8,0.00019178,2]
[313072817,1706719839503,-1927.15,0.00019178,2]
[313072818,1706719839512,-3030.0,0.00019178,2]
[313072819,1706719839521,-1443.4,0.00019178,2]
[313072820,1706719839530,-500.0,0.00019178,2]
[313072821,1706719839538,-500.0,0.00019178,2]
[313072822,1706719839547,-500.0,0.00019178,2]
[313072823,1706719839556,-1328.09,0.00019178,2]
[313072824,1706719839565,-500.0,0.00019178,2]
[313072825,1706719839575,-500.0,0.00019178,2]
[313072826,1706719839584,-1019.85,0.00019178,2]
[313072827,1706719839592,-500.0,0.00019178,2]
[313072828,1706719839601,-500.0,0.00019178,2]
[313072829,1706719839610,-165.629364,0.00019178,2]
[313072830,1706719839619,-190.71052723,0.00019195,2]
[313072831,1706719839627,-190.71052723,0.00019352,2]
[313072832,1706719839636,-997.02134818,0.00019441,2]
[313072833,1706719839645,-471.21066683,0.00019448,2]
[313072834,1706719839654,-155.17610025,0.00019448,2]
[313072835,1706719839663,-17397.80205365,0.00019449,2]
[313072836,1706719839672,-608.71079295,0.00019449,2]
[313072837,1706719839680,-155.01860223,0.00019449,2]
[313072838,1706719839689,-500.0,0.00019449,2]
[313072839,1706719839698,-494.88875224,0.00019449,2]
[313072840,1706719839708,-1743.00376549,0.00019449,2]
[313072841,1706719839716,-2106.19648268,0.00019449,2]
[313072842,1706719839726,-36738.80774666,0.0001945,2]
[313072843,1706719839735,-500.0,0.00019452,2]
[313072844,1706719839744,-500.0,0.00019452,2]
[313072845,1706719839753,-500.0,0.00019452,2]
[313072846,1706719839762,-500.0,0.00019452,2]
[313072847,1706719839770,-754.5,0.00019452,2]
[313072848,1706719839780,-500.0,0.00019452,2]
[313072849,1706719839789,-500.0,0.00019452,2]
[313072850,1706719839797,-500.0,0.00019452,2]
[313072851,1706719839806,-500.0,0.00019452,2]
[313072852,1706719839815,-500.0,0.00019452,2]
[313072853,1706719839824,-500.0,0.00019452,2]
[313072854,1706719839833,-606.73,0.00019452,2]
[313072855,1706719839842,-604.0,0.00019452,2]
[313072856,1706719839852,-500.0,0.00019452,2]
[313072857,1706719839861,-500.0,0.00019452,2]
[313072858,1706719839871,-500.0,0.00019452,2]
[313072859,1706719839880,-522.59,0.00019452,2]
[313072860,1706719839889,-1042.02,0.00019452,2]
[313072861,1706719839899,-2836.63,0.00019452,2]
[313072862,1706719839908,-1019.4,0.00019452,2]
[313072863,1706719839918,-500.0,0.00019452,2]
[313072864,1706719839927,-500.0,0.00019452,2]
[313072865,1706719839936,-500.0,0.00019452,2]
[313072866,1706719839946,-500.0,0.00019452,2]
[313072867,1706719839956,-171.81118109,0.00019452,2]
[313072868,1706719839965,-1124.8,0.00019452,2]
[313072869,1706719839974,-500.0,0.00019452,2]
[313072870,1706719839983,-6601.71,0.00019452,2]
[313072871,1706719839993,-500.0,0.00019452,2]
[313072872,1706719840003,-628.95,0.00019452,2]
[313072873,1706719840012,-500.0,0.00019452,2]
[313072874,1706719840022,-9960.78,0.00019452,2]
[313072875,1706719840031,-558.02,0.00019452,2]
[313072876,1706719840040,-500.0,0.00019452,2]
[313072877,1706719840050,-920.42,0.00019452,2]
[313072878,1706719840059,-1807.89,0.00019452,2]
[313072879,1706719840070,-645.71,0.00019452,2]
[313072880,1706719840080,-500.0,0.00019452,2]
[313072881,1706719840089,-1267.67,0.00019452,2]
[313072882,1706719840099,-500.0,0.00019452,2]
[313072883,1706719840109,-500.0,0.00019452,2]
[313072884,1706719840119,-500.0,0.00019452,2]
[313072885,1706719840128,-500.0,0.00019452,2]
[313072886,1706719840139,-500.0,0.00019452,2]
[313072887,1706719840148,-2089.44,0.00019452,2]
[313072888,1706719840158,-500.0,0.00019452,2]
[313072889,1706719840167,-1427.26,0.00019452,2]
[313072890,1706719840176,-1968.27,0.00019452,2]
[313072891,1706719840187,-500.0,0.00019452,2]
[313072892,1706719840197,-500.0,0.00019452,2]
[313072893,1706719840207,-522.02,0.00019452,2]
[313072894,1706719840217,-500.0,0.00019452,2]
[313072895,1706719840227,-3691.58,0.00019452,2]
[313072896,1706719840235,-13774.12,0.00019452,2]
[313072897,1706719840245,-500.0,0.00019452,2]
[313072898,1706719840254,-500.0,0.00019452,2]
[313072899,1706719840263,-427.04037808,0.00019452,2]
[313072900,1706719840272,-6805.11,0.00019452,2]
[313072901,1706719840281,-250.07075875,0.00019452,2]
[313072902,1706719840290,-1293.64,0.00019452,2]
[313072903,1706719840299,-647.94,0.00019452,2]
[313072904,1706719840308,-3182.92,0.00019452,2]
[313072905,1706719840316,-981.78,0.00019452,2]
[313072906,1706719840325,-1107.53,0.00019452,2]
[313072907,1706719840334,-1126.3,0.00019452,2]
[313072908,1706719840344,-1035.02,0.00019452,2]
[313072909,1706719840353,-2616.0,0.00019452,2]